Cogmind - Beta 14 @@@ ROGUE MODE // 2025.01.14 @ 12:13:22 Player: puppuppit Result: Destroyed by H-61 Shepherd with Heavy Assault Cannon Performance ------------- Evolutions (3) 1500 Regions Visited (10) 2000 Robots Destroyed (407) 2035 Value Destroyed (9288) 9288 Prototype IDs (55) 1100 Alien Tech Used (0) 0 Bonus (4104) 4104 TOTAL SCORE: 20027 Bonus ------- High Alert Combat Kills 3866 Follower Combat Kills 288 Aligned with FarCom 300 Friendly Fire -350 Cogmind --------- Core Integrity 0/700 Matter 300/300 Energy 160/160 System Corruption 1% Temperature Cool (0) Movement Hovering (38) Location -7/Factory Parts ------- > --- POWER (1) -------- Light Nuclear Core > --- PROPULSION (4) --- Improved Airjet Cooled Airjet Cooled Airjet Cooled Airjet > --- UTILITY (5) ------ Medium Storage Unit Improved Targeting Computer Recoil Stabilizer Advanced ECM Suite Hacking Suite > --- WEAPON (3) ------- Gauss Cannon Gauss Cannon > --- INVENTORY (10) --- Improved Airjet Improved Airjet Experimental Field Recycling Unit (350) Army-in-a-Box (30/30) Mini Smartbomb Launcher Peak State ------------ > --- POWER ------------ Light Nuclear Core > --- PROPULSION ------- Improved Airjet Cooled Airjet Cooled Airjet Cooled Airjet > --- UTILITY ---------- Medium Storage Unit Improved Targeting Computer Core Analyzer Hacking Suite Experimental Field Recycling Unit > --- WEAPON ----------- Gauss Cannon Gauss Cannon Mini Smartbomb Launcher > --- INVENTORY -------- Improved Airjet Improved Airjet Improved Cooling System Army-in-a-Box [Rating: 62] Favorites ----------- Power Light Nuclear Core Engine Light Ion Engine Power Core Light Nuclear Core Propulsion Improved Airjet Wheel Wheel Hover Unit Improved Airjet Flight Unit Cooled Nuclear Pulse Thruster Utility Medium Storage Unit Device Matter Filter Storage Medium Storage Unit Processor Improved Targeting Computer Hackware System Shield Protection Light Armor Plating Weapon Gauss Cannon Energy Gun Small Laser Energy Cannon Long-range Phase Cannon Ballistic Gun Heavy Assault Rifle Ballistic Cannon Gauss Cannon Launcher Mini Smartbomb Launcher Build | -11 -10 -10 -9 -9 -9 -8 -8 -7 -7 -7 ------- Run | Yrd Mat Min Mat Min Exi Min Mat Fac Was Fac Slots Evolved 6 | . . . 2 . . . 2 2 . . Power . | . . . . . . . . . . . Propulsion 2 | . . . 1 . . . 1 . . . Utility 3 | . . . . . . . 1 2 . . Weapon 1 | . . . 1 . . . . . . . Parts Attached 287 | 13 11 5 52 6 4 5 67 84 3 37 Power 32 | 3 1 1 4 1 . 1 7 6 . 8 Engine 17 | 3 1 . 3 1 . 1 2 5 . 1 Core 15 | . . 1 1 . . . 5 1 . 7 Reactor . | . . . . . . . . . . . Propulsion 78 | 5 2 4 15 1 . . 17 27 1 6 Treads . | . . . . . . . . . . . Leg . | . . . . . . . . . . . Wheel 7 | 5 2 . . . . . . . . . Hover 70 | . . 4 15 1 . . 17 26 1 6 Flight 1 | . . . . . . . . 1 . . Utility 52 | 2 3 . 3 2 1 . 9 21 1 10 Device 25 | 1 . . . 1 . . 3 10 1 9 Storage 9 | 1 1 . 2 1 1 . 2 1 . . Processor 10 | . 1 . 1 . . . 2 6 . . Hackware 6 | . . . . . . . 2 3 . 1 Protection 2 | . 1 . . . . . . 1 . . Artifact . | . . . . . . . . . . . Weapon 125 | 3 5 . 30 2 3 4 34 30 1 13 Energy Gun 1 | 1 . . . . . . . . . . Energy Cannon 2 | . . . . . . . . 2 . . Ballistic Gun 75 | 2 4 . 23 1 3 2 23 17 . . Ballistic Cannon 10 | . . . 1 . . . . 5 1 3 Launcher 37 | . 1 . 6 1 . 2 11 6 . 10 Special Weapon . | . . . . . . . . . . . Impact Weapon . | . . . . . . . . . . . Slashing Weapon . | . . . . . . . . . . . Piercing Weapon . | . . . . . . . . . . . Special Melee Weapon . | . . . . . . . . . . . Unidentified Prototypes 13 | . . . 1 1 . . . 9 . 2 Parts Lost 26 | . 2 2 2 . . . 3 15 1 1 Power 6 | . 1 . 1 . . . . 4 . . Propulsion 10 | . . 2 1 . . . 3 4 . . Utility 5 | . 1 . . . . . . 3 . 1 Weapon 5 | . . . . . . . . 4 1 . Highest Loss Streak 7 | . 1 2 1 . . . 2 7 1 1 To Critical Strikes . | . . . . . . . . . . . Average Slot Usage (%) 94 | . 94 99 96 100 69 100 98 90 88 95 Engine 5 | . 9 3 7 11 11 11 4 4 . . Core 2 | . . 10 1 . . . 4 . . 6 Wheel 2 | . 28 16 . . . . . . . . Hover 27 | . . 11 32 33 33 33 34 25 30 30 Device 2 | . 1 . . . . . 1 7 4 4 Storage 9 | . 14 14 11 11 11 11 9 7 7 7 Processor 12 | . 7 14 11 11 11 11 10 15 15 13 Hackware 4 | . . . . . . . 5 4 7 10 Ballistic Gun 17 | . 27 28 32 32 3 32 25 8 . . Ballistic Cannon 4 | . . . . . . . . 8 14 14 Launcher 2 | . . . . . . . 1 3 7 5 Peak Build Rating 62 | 9 9 10 18 20 20 22 41 61 56 62 Average Rating 33 | 5 7 9 14 15 11 20 38 47 54 55 On Entrance 22 | . 9 8 9 15 16 20 20 39 56 56 Naked Turns . | . . . . . . . . . . . Heaviest Build 43 | 12 19 19 21 21 22 26 34 37 31 43 Greatest Support 39 | 26 20 20 20 19 19 19 31 39 35 35 Greatest Overweight (x) 7 | . . 1 1 1 1 1 3 7 1 1 Average Overweight (x) . | . . . . . . 1 . . . . Largest Inventory Capacity 15 | 8 10 10 10 8 10 10 15 10 10 10 Average Capacity 9 | 7 9 10 9 7 9 10 10 9 10 10 Most Carried 10 | 4 10 10 10 8 10 10 10 10 10 10 Average Carried 9 | . 7 9 9 7 6 10 9 9 9 9 Final Capacity 10 | 8 10 10 8 8 10 10 10 10 10 10 Final Carried 10 | 4 10 8 8 8 10 10 10 10 10 10 Class Distribution -------------------- 30% | Mutant 25% | Gunner 21% | Skirmisher 6% | Hacker-Gunner 4% | Scavenger-Gunner 4% | Hacker-Mutant 4% | Scavenger-Mutant Dominant Class ---------------- Mutant | -10/Materials Mutant | -10/Mines Gunner | -9/Materials Gunner | -9/Mines Mutant | -9/Exiles Skirmisher | -8/Mines Skirmisher | -8/Materials Gunner | -7/Factory Mutant | -7/Waste Mutant | -7/Factory Resources | -11 -10 -10 -9 -9 -9 -8 -8 -7 -7 -7 ----------- Run | Yrd Mat Min Mat Min Exi Min Mat Fac Was Fac Matter Collected 11200 | 282 308 506 1596 224 . 207 2712 3167 200 1998 Remotely 1794 | . . . . . . . . 1794 . . Salvage Created 14037 | 148 414 521 1958 538 . 373 3655 3673 250 2507 Parts 776 | 12 46 22 124 26 . 18 226 174 . 128 Haulers Intercepted 26 | . . . 6 . . . 6 9 . 5 Recyclers Shooed 25 | 1 1 . 2 3 . 2 . 9 . 7 Parts Field Recycled 41 | . . . . . . . . . . 41 Retrieved Matter 975 | . . . . . . . . . . 975 Parts Self-Destructed . | . . . . . . . . . . . Prevented . | . . . . . . . . . . . Kills | -11 -10 -10 -9 -9 -9 -8 -8 -7 -7 -7 ------- Run | Yrd Mat Min Mat Min Exi Min Mat Fac Was Fac Combat Hostiles Destroyed 204 | . 12 4 34 5 . 7 53 49 1 39 Guns 73 | . 7 4 22 4 . . 24 12 . . Cannons 23 | . . . . . . . . 11 1 11 AOE 108 | . 5 . 12 1 . 7 29 26 . 28 Classes Destroyed 21 | 3 5 . 3 1 . . 5 2 1 1 Worker 48 | 2 . 2 3 1 . . 10 20 . 10 Builder 27 | . 3 . 2 . . 1 6 10 . 5 Tunneler 12 | 2 . . . 1 . . 5 1 . 3 Hauler 26 | . . . 6 . . . 6 9 . 5 Recycler 73 | 1 1 4 5 4 . 4 13 21 . 20 Mechanic 4 | . . . . . . . 2 . . 2 Operator 5 | . 1 . 3 . . . 1 . . . Watcher 21 | . 3 . 5 . . . 5 5 . 3 Swarmer 32 | . 6 . 9 . . 7 3 4 . 3 Cutter 9 | . . . . . . . 5 . . 4 Grunt 99 | . 6 4 18 3 . . 28 27 . 13 Brawler 6 | . . . . . . . 2 3 . 1 Duelist 8 | . . . . . . . 4 4 . . Protector 7 | . . . 1 . . . 1 1 . 4 Sentry 22 | . . . 6 . . . 9 4 . 3 Specialist 2 | . . . . . . . . . . 2 Hunter 7 | . . . . . . . . 1 . 6 Programmer 5 | . . . . . . . . 2 . 3 Heavy 1 | . . . . . . . 1 . . . Compactor 1 | . . . . . . . . . 1 . Assembled 5 | . . . . 2 . . . 3 . . Thug 2 | . . . 1 1 . . . . . . Best Kill Streak 18 | 4 7 3 7 4 . 4 9 13 1 18 Combat Bots Only 9 | . 6 3 5 2 . 4 9 8 1 8 Max Kills in Single Turn 4 | 1 3 2 3 3 . 4 4 3 1 4 Gunslinging 1 | . . . 1 . . . . . . . Exploded 4 | . 3 . 2 1 . 4 3 3 . 4 Melee . | . . . . . . . . . . . Uniques/NPCs Destroyed . | . . . . . . . . . . . Combat | -11 -10 -10 -9 -9 -9 -8 -8 -7 -7 -7 -------- Run | Yrd Mat Min Mat Min Exi Min Mat Fac Was Fac Hostile Shots Fired 590 | . 47 8 104 6 . 3 81 259 1 81 Missed 218 | . 13 . 41 1 . . 32 101 . 30 Damage Taken 5168 | . 358 97 843 71 . 48 998 2101 49 603 Core 1136 | . 32 . 141 33 . 15 191 535 . 189 Absorbed by Shields . | . . . . . . . . . . . Regen/Repaired (Parts) 609 | . . . 108 . . . 125 . . 376 Core Remaining (%) 76 | 100 . 87 . . . 52 65 . . . Volleys Fired 755 | 23 55 29 104 17 . 14 158 194 10 151 Largest 3 | 2 2 2 3 3 . 3 3 3 2 2 Hottest 121 | 40 53 40 79 85 . 69 95 121 96 96 Shots Fired 1697 | 46 108 58 304 51 . 22 451 394 20 243 Gun 1173 | 46 105 58 289 50 . 19 423 183 . . Cannon 393 | . . . 1 . . . . 179 20 193 Launcher 131 | . 3 . 14 1 . 3 28 32 . 50 Special . | . . . . . . . . . . . Kinetic 1566 | 46 105 58 290 50 . 19 423 362 20 193 Thermal . | . . . . . . . . . . . Explosive 131 | . 3 . 14 1 . 3 28 32 . 50 Electromagnetic . | . . . . . . . . . . . Robot Hit Streak 25 | 5 10 17 25 8 . 4 15 20 6 14 Robot Miss Streak 9 | 3 4 2 6 2 . 2 6 9 2 5 Penetration Max 1 | . . . . . . . 1 1 . 1 Secondary Targets 6 | . . . 2 . . . 1 3 . . Max Gunslinging Chain 1 | . . . 1 . . . 1 1 . . Shots Hit Robots 886 | 30 63 40 172 31 . 11 233 196 15 95 Core Hits 642 | 11 30 18 82 17 . 15 147 177 2 143 Critical Kills 5 | . . . . . . 1 2 2 . . Critical Parts Destroyed 3 | . . . 1 . . . . 2 . . Critical Strikes 36 | . . . 1 . . 1 2 22 . 10 Destroy 8 | . . . 1 . . 1 2 4 . . Blast 28 | . . . . . . . . 18 . 10 Melee Attacks . | . . . . . . . . . . . Impact . | . . . . . . . . . . . Slashing . | . . . . . . . . . . . Piercing . | . . . . . . . . . . . Sneak Attacks . | . . . . . . . . . . . Combat Hostiles . | . . . . . . . . . . . Follow-up Attacks . | . . . . . . . . . . . Damage Inflicted 34373 | 242 1260 499 3711 616 . 663 7463 10582 454 8883 Guns 11016 | 242 779 499 2417 515 . 169 4221 2174 . . Cannons 6543 | . . . . . . . . 2951 454 3138 Explosions 16797 | . 481 . 1294 101 . 494 3242 5440 . 5745 Melee . | . . . . . . . . . . . Ramming 17 | . . . . . . . . 17 . . Kinetic 17559 | 242 779 499 2417 515 . 169 4221 5125 454 3138 Thermal 241 | . . . 100 . . . . . . 141 Explosive 16295 | . 481 . 1194 101 . 494 3242 5179 . 5604 Electromagnetic 261 | . . . . . . . . 261 . . Impact . | . . . . . . . . . . . Slashing . | . . . . . . . . . . . Piercing . | . . . . . . . . . . . Highest Corruption 2 | . . . 1 1 1 1 . 2 . 1 Average Corruption 1 | . . . 1 1 1 1 . 1 . 1 Corruption Purged 4 | . . . . . . . . 4 . . Corruption Blocked . | . . . . . . . . . . . Effects 31 | . . . 4 2 1 5 . 19 . . Message Errors 8 | . . . 2 1 . 1 . 4 . . Matter Fused 8 | . . . . . 1 2 . 5 . . Heat Flow Errors 2 | . . . . . . 2 . . . . Energy Discharges 4 | . . . 1 . . . . 3 . . Parts Rejected 1 | . . . . . . . . 1 . . Data Loss (minor) 3 | . . . . 1 . . . 2 . . Data Loss (major) 3 | . . . . . . . . 3 . . Misfires 1 | . . . 1 . . . . . . . Weapon Failures 1 | . . . . . . . . 1 . . Overload Shots . | . . . . . . . . . . . Overflow Damage 522 | . 15 . 57 12 . . 102 153 . 183 Projectiles 125 | . . . . . . . . 47 . 78 Explosions 397 | . 15 . 57 12 . . 102 106 . 105 Melee . | . . . . . . . . . . . Knockbacks 33 | . . . . . . . . 14 . 19 Impact . | . . . . . . . . . . . Kinetic 32 | . . . . . . . . 13 . 19 Secondary 1 | . . . . . . . . 1 . . Self-Inflicted Damage 221 | . . . 105 18 . 26 1 23 . 48 Shots 8 | . . . 2 1 . 1 1 1 . 2 Rammed 6 | . . . . . . . . 6 . . Targets Rammed 6 | . . . . . . . . 6 . . Kicked . | . . . . . . . . . . . Crushed . | . . . . . . . . . . . Highest Temperature 297 | . 12 3 88 39 . 274 297 231 . 192 Average Temperature 47 | . 4 2 26 11 . 79 80 40 . 33 Received Heat Transfer 1535 | . 132 54 315 24 . . 333 587 . 90 Effects 8 | . . . . . . . 5 3 . . Energy Bleed 2 | . . . . . . . 2 . . . Interference 6 | . . . . . . . 3 3 . . Siege Activations . | . . . . . . . . . . . Robots Corrupted . | . . . . . . . . . . . Combat Hostiles . | . . . . . . . . . . . Parts Fried . | . . . . . . . . . . . Impact Corruptions . | . . . . . . . . . . . Robots Melted . | . . . . . . . . . . . Combat Hostiles . | . . . . . . . . . . . Parts Melted . | . . . . . . . . . . . Heat Transferred 100 | . . . 50 . . . . . . 50 Parts Sabotaged . | . . . . . . . . . . . Parts Stolen . | . . . . . . . . . . . Parts Stripped . | . . . . . . . . . . . Power Chain Reactions . | . . . . . . . . . . . Alert | -11 -10 -10 -9 -9 -9 -8 -8 -7 -7 -7 ------- Run | Yrd Mat Min Mat Min Exi Min Mat Fac Was Fac Peak Influence 2183 | 25 298 218 1118 538 . 230 1480 2183 742 1962 Initial 742 | . 16 115 52 391 . . 17 673 742 515 Average 770 | 9 145 166 679 475 . 119 721 1232 736 1106 Maximum Alert Level 5 | . 1 1 4 2 . 1 4 5 3 5 Low Security (%) 16 | 100 62 43 9 . . 69 14 . . . Level 1 14 | . 37 56 10 13 . 30 25 . . . Level 2 16 | . . . 29 86 . . 9 17 . 19 Level 3 24 | . . . 36 . . . 18 30 100 33 Level 4 16 | . . . 13 . . . 31 14 . 27 Level 5 11 | . . . . . . . . 36 . 19 High Security . | . . . . . . . . . . . Max Security . | . . . . . . . . . . . Sterilizations 1 | . . . . . . . 1 . . . Squads Dispatched 58 | . 4 1 4 2 . . 13 20 . 14 Investigation 21 | . 2 1 2 2 . . 5 6 . 3 Extermination 3 | . . . . . . . . 2 . 1 Reinforcement 23 | . 2 . 1 . . . 6 7 . 7 Assault 9 | . . . 1 . . . 2 3 . 3 Garrison 2 | . . . . . . . . 2 . . Intercept . | . . . . . . . . . . . Searches Triggered . | . . . . . . . . . . . Construction Impeded 4 | . . . . . . . 1 1 . 2 Haulers Reinforced 4 | . . . . . . . . 3 . 1 Active Scanning Responses . | . . . . . . . . . . . Cargo Convoy Interrupts 2 | . . . . . . . . 1 . 1 Stealth | -11 -10 -10 -9 -9 -9 -8 -8 -7 -7 -7 --------- Run | Yrd Mat Min Mat Min Exi Min Mat Fac Was Fac Distress Signals 5 | . . 1 . . . . . 2 . 2 Communications Jammed . | . . . . . . . . . . . Distress Signals . | . . . . . . . . . . . Times Spotted 251 | . 18 5 49 6 . 3 63 64 2 41 Peak Tracking Total 13 | . 7 3 5 4 . 3 5 8 1 13 Tactical Retreats 8 | . 2 . 1 . . . . 4 1 . Traps | -11 -10 -10 -9 -9 -9 -8 -8 -7 -7 -7 ------- Run | Yrd Mat Min Mat Min Exi Min Mat Fac Was Fac Traps Triggered 11 | . 1 . . . . . 4 5 . 1 Indirectly . | . . . . . . . . . . . Trap Hack Attempts . | . . . . . . . . . . . Triggered . | . . . . . . . . . . . Disarmed 2 | . . . . . . . . 2 . . Reprogrammed 1 | . . . 1 . . . . . . . Reused 2 | . . . 2 . . . . . . . Traps Extracted . | . . . . . . . . . . . Installed 2 | . . . 2 . . . . . . . Triggered 2 | . . . 2 . . . . . . . Most Traps Carried 2 | . . 2 2 . . . . . . . Machines | -11 -10 -10 -9 -9 -9 -8 -8 -7 -7 -7 ---------- Run | Yrd Mat Min Mat Min Exi Min Mat Fac Was Fac Machines Disabled 54 | . 2 1 5 . . 1 9 22 . 14 Max in Single Turn 4 | . 1 . 2 . . 1 2 4 . 4 Garrison Access 1 | . . . . . . . . 1 . . Machines Repaired . | . . . . . . . . . . . Machines Dismantled . | . . . . . . . . . . . Machines Sabotaged . | . . . . . . . . . . . Overloaded Fab Kills . | . . . . . . . . . . . Hacking | -11 -10 -10 -9 -9 -9 -8 -8 -7 -7 -7 --------- Run | Yrd Mat Min Mat Min Exi Min Mat Fac Was Fac Machines Accessed 72 | . 5 1 15 3 5 . 12 20 . 11 Terminals 44 | . 5 1 11 1 . . 9 11 . 6 Fabricators 4 | . . . . . . . . 3 . 1 Repair Stations 7 | . . . 2 . . . 1 1 . 3 Recycling Units 1 | . . . . . . . . 1 . . Scanalyzers 6 | . . . 2 . . . 2 2 . . Garrison Access 3 | . . . . . . . . 2 . 1 Total Hacks 258 | . 14 2 53 8 50 . 36 60 . 35 Successful 147 | . 3 . 30 4 50 . 19 23 . 18 Failed 108 | . 10 2 22 4 . . 16 37 . 17 Catastrophic 25 | . 1 . 2 2 . . 3 14 . 3 Database Lockouts 3 | . 1 . 1 . . . 1 . . . Manual 59 | . 13 2 15 5 1 . 19 4 . . Terminals 127 | . 14 2 37 6 . . 24 31 . 13 Fabricators 11 | . . . . . . . . 9 . 2 Repair Stations 33 | . . . 7 . . . 6 3 . 17 Recycling Units 2 | . . . . . . . . 2 . . Scanalyzers 28 | . . . 9 . . . 6 13 . . Garrison Access 5 | . . . . . . . . 2 . 3 Terminal Hacks 97 | . 3 . 17 4 50 . 9 9 . 5 Record 53 | . . . . 1 49 . . 2 . 1 Robot Schematic 2 | . . . 1 . . . . 1 . . Robot Analysis 12 | . 1 . 8 1 . . 1 . . 1 Prototype ID Bank 10 | . . . 3 . . . 3 2 . 2 Open Door 2 | . . . . 2 . . . . . . Branch Access Points 2 | . . . . . . . 1 . . 1 Emergency Access Points 1 | . . . . . . . . 1 . . Terminal Index 4 | . 1 . 1 . . . 1 1 . . Unreport Threat 2 | . . . 1 . . . 1 . . . Locate Traps 3 | . . . 1 . . . 1 1 . . Disarm Traps 1 | . . . . . . . . 1 . . Reprogram Traps 1 | . . . 1 . . . . . . . Zone Layout 3 | . 1 . 1 . . . 1 . . . Derelict Proto ID Bank 1 | . . . . . 1 . . . . . Fabricator Hacks 6 | . . . . . . . . 4 . 2 Network Status 1 | . . . . . . . . 1 . . Load Schematic 3 | . . . . . . . . 2 . 1 Build 2 | . . . . . . . . 1 . 1 Repair Station Hacks 22 | . . . 5 . . . 6 . . 11 Scan Component 11 | . . . 2 . . . 3 . . 6 Repair 10 | . . . 2 . . . 3 . . 5 Refit 1 | . . . 1 . . . . . . . Recycling Unit Hacks . | . . . . . . . . . . . Scanalyzer 21 | . . . 8 . . . 4 9 . . Insert Component 9 | . . . 3 . . . 2 4 . . Analyze 12 | . . . 5 . . . 2 5 . . Garrison Access Hacks 1 | . . . . . . . . 1 . . Seal Access 1 | . . . . . . . . 1 . . Unauthorized Hacks . | . . . . . . . . . . . Terminals . | . . . . . . . . . . . Fabricators . | . . . . . . . . . . . Repair Stations . | . . . . . . . . . . . Recycling Units . | . . . . . . . . . . . Scanalyzers . | . . . . . . . . . . . Garrison Access . | . . . . . . . . . . . Data Cores Recovered 1 | . . . 1 . . . . . . . Used 1 | . . . 1 . . . . . . . Hacking Detections 59 | . 5 1 14 1 . . 11 17 . 10 Full Trace Events 22 | . 3 1 5 1 . . 4 5 . 3 Feedback Events 1 | . . . 1 . . . . . . . Corruption 1 | . . . 1 . . . . . . . Feedback Blocked 2 | . . . . . . . . 1 . 1 Robot Schematics Acquired 2 | . . . 1 . . . . 1 . . Robots Built 4 | . . . . . . . . 1 . 3 Authchips . | . . . . . . . . . . . Time 197 | . . . . . . . . 81 . 116 Total Robot Build Rating 10 | . . . . . . . . 1 . 9 Part Schematics Acquired 7 | . . . 3 . . . 1 3 . . Parts Built . | . . . . . . . . . . . Authchips . | . . . . . . . . . . . Time . | . . . . . . . . . . . Total Part Build Rating . | . . . . . . . . . . . Parts Repaired 10 | . . . 2 . . . 3 . . 5 Time 550 | . . . 64 . . . 146 . . 340 Parts Recycled . | . . . . . . . . . . . Recycled Matter . | . . . . . . . . . . . Retrieved Matter . | . . . . . . . . . . . Retrieved Components . | . . . . . . . . . . . Parts Scanalyzed 8 | . . . 3 . . . 2 3 . . Part Schematics Acquired 7 | . . . 3 . . . 1 3 . . Parts Damaged 2 | . . . 1 . . . . 1 . . Bothacking | -11 -10 -10 -9 -9 -9 -8 -8 -7 -7 -7 ------------ Run | Yrd Mat Min Mat Min Exi Min Mat Fac Was Fac Used RIF Installer . | . . . . . . . . . . . Robots Hacked . | . . . . . . . . . . . Non-combat . | . . . . . . . . . . . Combat . | . . . . . . . . . . . Robot Hacks Applied . | . . . . . . . . . . . Relay Couplers Released . | . . . . . . . . . . . Fabnet Peak Effective % . | . . . . . . . . . . . Robots Rewired . | . . . . . . . . . . . Allies Hacked . | . . . . . . . . . . . Hacks Repelled . | . . . . . . . . . . . Allies | -11 -10 -10 -9 -9 -9 -8 -8 -7 -7 -7 -------- Run | Yrd Mat Min Mat Min Exi Min Mat Fac Was Fac Total Allies 6 | . . 2 . . . . . 1 . 3 Largest Group 3 | . . 2 2 . . . . 1 . 3 Highest-Rated Group 48 | . . 41 41 . . . . 14 . 48 Highest-Rated Ally 31 | . . 31 31 . . . . 14 . 16 Total Orders . | . . . . . . . . . . . Ally Attacks 58 | . . 14 21 . . . . . . 23 Total Damage 675 | . . 154 254 . . . . . . 267 Kills 12 | . . 3 4 . . . . . . 5 Allies Corrupted . | . . . . . . . . . . . Allies Melted . | . . . . . . . . . . . Intel | -11 -10 -10 -9 -9 -9 -8 -8 -7 -7 -7 ------- Run | Yrd Mat Min Mat Min Exi Min Mat Fac Was Fac Robot Analysis Total 12 | . 1 . 8 1 . . 1 . . 1 Derelict Logs Recovered 3 | . . 2 . 1 . . . . . . Drone Launches . | . . . . . . . . . . . Drone Recoveries . | . . . . . . . . . . . Exploration | -11 -10 -10 -9 -9 -9 -8 -8 -7 -7 -7 ------------- Run | Yrd Mat Min Mat Min Exi Min Mat Fac Was Fac Turns Passed 9672 | 142 624 539 1242 359 352 542 1812 2038 364 1658 Spaces Moved 11026 | 66 525 462 1332 544 615 448 2319 2391 442 1882 Core 24 | 5 . . . . . . . 19 . . Treads . | . . . . . . . . . . . Legs . | . . . . . . . . . . . Wheels 954 | 61 525 368 . . . . . . . . Hover 10048 | . . 94 1332 544 615 448 2319 2372 442 1882 Flight . | . . . . . . . . . . . Fastest Speed 34 | 50 80 80 52 52 52 112 40 34 38 38 Average Speed 54 | 90 80 87 55 52 54 112 42 46 72 42 Slowest Speed 400 | 100 80 116 116 112 112 112 240 400 102 102 Overloaded Moves 18 | . . . . . . . . 18 . . Propulsion Burnouts . | . . . . . . . . . . . Robots Hopped . | . . . . . . . . . . . Cave-ins Triggered . | . . . . . . . . . . . Exploration Rate (%) 76 | 5 81 91 90 94 90 97 97 63 95 37 Regions Visited 10 Branch Regions 4 Pre-discovered Areas 1 | . . . . . 1 . . . . . Known Exits Taken 1 | . . . . . . 1 . . . . Unknown Exits Taken 7 | 1 1 1 1 1 1 . 1 . . . Scrap Searched 3 | . . 1 . 1 . 1 . . . . Spaces Dug 6 | . . . . . . . . 4 . 2 Terrain Destroyed 1286 | . 35 . 120 16 . 64 350 255 5 441 Melee . | . . . . . . . . . . . Projectile 113 | . . . . . . . 11 52 5 45 AOE 1173 | . 35 . 120 16 . 64 339 203 . 396 Terrain Rammed . | . . . . . . . . . . . Walls Destroyed . | . . . . . . . . . . . Machines Disabled . | . . . . . . . . . . . Actions | -11 -10 -10 -9 -9 -9 -8 -8 -7 -7 -7 --------- Run | Yrd Mat Min Mat Min Exi Min Mat Fac Was Fac Total 13444 | 105 629 541 1648 579 640 467 2927 2956 465 2487 Wait 1067 | . 13 41 112 . . . 339 197 6 359 Move 11017 | 65 524 461 1331 543 614 447 2318 2391 441 1882 Hop . | . . . . . . . . . . . Pick Up 93 | 3 13 2 16 6 6 . 11 23 3 10 Fast Attach 82 | 7 2 . 8 2 3 . 12 37 1 10 Attach 44 | . 1 4 5 . . . 4 19 1 10 Detach 38 | . 1 . . . 3 . 2 20 . 12 Swap 162 | 6 8 1 39 4 1 5 51 29 1 17 Drop 165 | 1 12 3 31 7 13 1 32 40 2 23 Fire 755 | 23 55 29 104 17 . 14 158 194 10 151 Melee . | . . . . . . . . . . . Ram 6 | . . . . . . . . 6 . . Kick . | . . . . . . . . . . . Crush . | . . . . . . . . . . . Escape Stasis 13 | . . . . . . . . . . 13 Rewire . | . . . . . . . . . . . Trap 2 | . . . 2 . . . . . . . Miscellaneous . | . . . . . . . . . . . Route ------- -11/Scrapyard -10/Materials (discovered 4 exits: *Mat x2 / *Min x2) -10/Mines (discovered 2 exits: *Mat x2) -9/Materials (discovered 5 exits: *Mat x3 / *Min x2) -9/Mines (discovered 3 exits: *Mat x2 / *Exi) -9/Exiles -8/Mines (discovered 2 exits: *Mat x2) -8/Materials (discovered 3 exits: *Fac x3) -7/Factory -7/Waste -7/Factory (discovered 3 exits: *Sto / *Low x2) History --------- Turn | Location | Event 32 | -11/Scrapyard | Discovered new exit (range 15) 143 | -11/Scrapyard | Entered Materials 302 | -10/Materials | Discovered new exit (range 14) 421 | -10/Materials | Discovered new exit (range 3) 508 | -10/Materials | Build established: Mutant 601 | -10/Materials | Discovered new exit (range 8) 606 | -10/Materials | Central database locked down 667 | -10/Materials | Discovered new exit (range 15) 767 | -10/Materials | Entered Mines 810 | -10/Mines | Discovered new exit (range 5) 876 | -10/Mines | Discovered new exit (range 9) 946 | -10/Mines | Learned Materials stockpile data 975 | -10/Mines | Learned location of 1 exit from Materials 1087 | -10/Mines | Found a hidden stash of uninstalled traps 1306 | -10/Mines | Entered Materials 1306 | -9/Materials | Accompanied by 2 allies 1306 | -9/Materials | Evolved 2 slots: Propulsion x1, Weapon x1 1307 | -9/Materials | Identified exit to Materials 1311 | -9/Materials | Led the pair of lost Derelicts to an unsafe place 1415 | -9/Materials | Discovered exit to Materials (range 12) 1653 | -9/Materials | Build established: Gunner 1749 | -9/Materials | Discovered new exit (range 8) 2006 | -9/Materials | Discovered new exit (range 5) 2047 | -9/Materials | Central database locked down 2106 | -9/Materials | First assault squad dispatched 2130 | -9/Materials | Discovered exit to Materials (range 9) 2427 | -9/Materials | Repaired Imp. Hover Unit 2461 | -9/Materials | Repaired Hvy. Assault Rifle 2548 | -9/Materials | Entered Mines 2551 | -9/Mines | Assembled infested the area 2556 | -9/Mines | Assisted by a Guerilla fighting off Assembled 2563 | -9/Mines | Met a Derelict shopkeep closing up shop 2658 | -9/Mines | Found DCF Scrap (12 items) 2696 | -9/Mines | Discovered exit to Materials (range 8) 2748 | -9/Mines | Discovered exit to Materials (range 12) 2749 | -9/Mines | Learned Materials stockpile data 2822 | -9/Mines | Found the Drone Emporium 2826 | -9/Mines | Found Prototype Device 2826 | -9/Mines | Identified Thief Drone Bay 2904 | -9/Mines | Deemed a non-threat by the Exiles lab entrance 2905 | -9/Mines | Discovered new exit (range 5) 2907 | -9/Mines | Entered Exiles 2925 | -9/Exiles | Met 8R-AWN 2933 | -9/Exiles | Met EX-HEX 2953 | -9/Exiles | Met EX-DEC 2978 | -9/Exiles | Learned location of Zion (-6) 3100 | -9/Exiles | Visited The Gauntlet 3159 | -9/Exiles | Met EX-BIN 3167 | -9/Exiles | Aligned with FarCom system 3168 | -9/Exiles | Given EX-Vault access code 3188 | -9/Exiles | Opened EX-Vault 3192 | -9/Exiles | Found Army-in-a-Box 3204 | -9/Exiles | Warned to stay clear of 0b10 Research branches 3213 | -9/Exiles | Build established: Mutant 3248 | -9/Exiles | Discovered new exit (range 12) 3259 | -9/Exiles | Left Exiles lab with Army-in-a-Box 3259 | -9/Exiles | Entered Mines 3274 | -8/Mines | Discovered exit to Materials (range 9) 3330 | -8/Mines | Discovered exit to Materials (range 12) 3572 | -8/Mines | Build established: Skirmisher 3801 | -8/Mines | Entered Materials 3801 | -8/Materials | Evolved 2 slots: Propulsion x1, Utility x1 3951 | -8/Materials | Repaired Hover Unit 4147 | -8/Materials | Discovered new exit (range 16) 4601 | -8/Materials | First assault squad dispatched 4636 | -8/Materials | Discovered new exit (range 5) 4724 | -8/Materials | Destroyed 9 combat bots 4783 | -8/Materials | Central database locked down 5211 | -8/Materials | Repaired Aerolev Unit 5272 | -8/Materials | Repaired Aerolev Unit 5359 | -8/Materials | Discovered new exit (range 16) 5521 | -8/Materials | Sterilization system engaged 5521 | -8/Materials | Non-combat units ordered to evacuate 5613 | -8/Materials | Entered Factory 5613 | -7/Factory | Evolved 2 slots: Utility x2 5741 | -7/Factory | Assembled infested ambush trap array 5805 | -7/Factory | Lost 7 parts (1p2n1u3w) 5977 | -7/Factory | Core integrity fell below 50% 6308 | -7/Factory | Garrison activated, responded to threat 6413 | -7/Factory | First assault squad dispatched 6416 | -7/Factory | Cargo convoy interrupted 6422 | -7/Factory | Found Prototype Launcher 6422 | -7/Factory | Identified Mni. Smartbomb Launcher 6574 | -7/Factory | Garrison activated, responded to threat 6689 | -7/Factory | Fabricated M-13 Machinist? 6708 | -7/Factory | Destroyed 7 combat bots 6732 | -7/Factory | Discovered new exit (range 10) 6755 | -7/Factory | Identified exit to Storage 6918 | -7/Factory | Destroyed 8 combat bots 7591 | -7/Factory | Build established: Mutant 7651 | -7/Factory | Sucked down chute 7651 | -7/Factory | Entered Waste 7651 | -7/Waste | The area was eerily silent 7721 | -7/Waste | A Compactor rumbled back to life 7721 | -7/Waste | Spotted C-40 Crusher 7722 | -7/Waste | Crushed by Compactor (1 part destroyed, 1 dropped) 7826 | -7/Waste | Destroyed C-40 Crusher 7889 | -7/Waste | Discovered new exit (range 12) 8015 | -7/Waste | Entered Factory 8160 | -7/Factory | Discovered exit to Storage (range 15) 8169 | -7/Factory | Core integrity fell below 20% 8308 | -7/Factory | Identified exit to Lower Caves 8349 | -7/Factory | Build established: Hacker-Mutant 8427 | -7/Factory | Repaired Broken Mni. Smartbomb Launcher 8498 | -7/Factory | Repaired Imp. Airjet 8571 | -7/Factory | Repaired Imp. Airjet 8725 | -7/Factory | Build established: Hacker-Gunner 8864 | -7/Factory | Cargo convoy interrupted 8960 | -7/Factory | Destroyed 8 combat bots 9103 | -7/Factory | Repaired Gauss Cannon 9149 | -7/Factory | Repaired Gauss Cannon 9215 | -7/Factory | First assault squad dispatched 9478 | -7/Factory | Fabricated G-47 Trooper (x3) 9645 | -7/Factory | Build established: Mutant 9673 | -7/Factory | Destroyed by H-61 Shepherd with Heavy Assault Cannon Last Messages --------------- 09633_ K-01 Serf collects debris. 09634_ U-05 Engineer lays Concrete. 09635_ Acquired 18 matter. 09636_ Acquired 4 matter. 09636_ U-05 Engineer lays Concrete. 09636_ U-05 Engineer builds a Wall. 09637_ U-05 Engineer lays Concrete. 09638_ K-01 Serf collects debris. 09639_ U-05 Engineer lays Concrete. 09641_ K-01 Serf collects debris. 09642_ R-06 Scavenger collects Wheel. 09647_ Dropped Imp. Airjet. 09648_ Dropped Imp. Cooling System. 09649_ Acquired Imp. Airjet. 09659_ T-07 Excavator destroyed. 09662_ Acquired 21 matter. 09663_ Acquired 1 matter. 09672_ ALERT: Suspicious intruders detected, dispatching Cutter reinforcements to area. [Achievement: Just Browsing] Map ----- +----------------------------------------------------+ | ??????????????????????# ! | | ??????????????????????# | | ??????????????????????# """"""" | | ??????????????????????# """"""" | | ??????????????????????# """"""" | | ??????????????????????# """"""" | | ??????????????????????# | | ??????????????????????# """"""" | | ??????????????????????# """"""" | | ??????????????????????# """"""" | | ??????????H???????????# """"""" | | ?????????? ???????????# *|! | | ?????????? ???????????###+#####+### | | ?????????? ?????????????# #???# #?? | | ?????????? ?????????????#%#???# #?? | | ?????????? ?????????????#!#???# #?? | | ?????????? ?????????????# #???# #?? | | ?????????# #????????????# #???# #?? | | ?????????# #????????????# #???# #?? | | ??????#### #????????????# #???# #?? | | ??????? +????????????# #???# #?? | | ???????# #??????????### ###?? ??? | | ???????# #??????????# ### ##? | | ???????# #??????????# ## | | ???????# #??####????# | | ???????# @####T ###### ## | | ???????# % #####? | | ???????# #????? | | ???????# #????? | | ???????# ^ #????? | | ???????# #????? | | ???????# """"""" !!! #????? | | ???????+ """"""" !! #????? | | ???????# """"""" !! #????? | | ???????# """"""" #????? | | ???????# #????? | | ???????# "????"" """"""" #????? | | ???????# "????"" """"""" #????? | | ???????# "?????" """"""? #????? | | ???????# ??????" "??????? +????? | | ??????? ?????? ????????#????? | | ???????? ?????? ??????????????? | | ?????????? ???????? ??????????????? | | ??????????????????????????????????? | | ??????????????????????????????????? | | ??????????????????????????????????? | | ??????????????????????????????????? | | ??????????????????????????????????? | | ??????????????????????????????????? | | ??????????????????????????????????? | +----------------------------------------------------+ Best States ------------- Heat Dissipation 48 Energy Generation 14 Energy Capacity 280 Matter Stores 300 Matter Capacity 300 Sight Range 23 Terrain Scan Range 16 Terrain Scan Density 10 ECM Strength 2 Armor Coverage 150 Evasion (%) 63 Targeting Accuracy 12 Target Analysis 5 Core Analysis 6 Recoil Reduction 4 Matter Filtering 30 Offensive Hacking 10 Defensive Hacking 20 Item Schematics ----------------- Imp. Light Cannon | -9/Materials | Scanalyzed Imp. Hover Unit | -9/Materials | Scanalyzed Imp. Assault Rifle | -9/Materials | Scanalyzed Adv. Assault Cannon | -8/Materials | Scanalyzed Imp. Airjet | -7/Factory | Scanalyzed Gauss Cannon | -7/Factory | Scanalyzed Mni. Smartbomb Launcher | -7/Factory | Scanalyzed Robot Schematics ------------------ M-13 Machinist | -9/Materials | Hacked G-47 Trooper | -7/Factory | Hacked Fabricated ------------ M-13 Machinist | x1 | -7/Factory G-47 Trooper | x3 | -7/Factory Alien Tech Used ----------------- None Achievements -------------- Just Browsing Challenges ------------ None Game ------ Seed ConcussiveGrapheneRedirector Manual? 0 Play Time 02:54:44 Cumulative 27.3 hours Start 2025.01.14 @ 09:18:33 End 2025.01.14 @ 12:13:22 Sessions 1 Manual Loads 0 Difficulty Rogue Special Mode None Game No. 20 Rogue 20 Adventurer 0 Explorer 0 Win Type - Total 0 Types 0/0/0/0/0/0/0/0/0 Lore% 18 Gallery% 25 Achievement% 32 Wizard Run 0 Options --------- Layout 0 ASCII 0 Keyboard 1 Movement Arrows Keybinds 0 Fullscreen 1 Font 12/Proggy Map View 83x54 Zoom Use 0% Tactical HUD 1 Map Filters NONE Filters NONE Steam 0 RUN: af7351c2-085c-4778-9918-50f6738a4059